fUST/lending_fUST_20240610
["ID","MTS","AMOUNT","RATE_DAILY","PERIOD"]
[328880545,1717949442329,-668.442388,0.00019949,2]
[328880546,1717949442340,-159.042426,0.00019973,2]
[328880547,1717949442352,-159.042426,0.00019973,2]
[328880548,1717949442362,-159.042426,0.00019973,2]
[328880549,1717949442375,-159.042426,0.00019973,2]
[328880550,1717949442385,-158.777703,0.00019973,2]
[328880551,1717949442396,-151.0,0.00019973,2]
[328880552,1717949442407,-151.0,0.00019973,2]
[328880553,1717949442417,-314.884317,0.00019973,2]
[328880554,1717949442428,-314.884317,0.00019973,2]
[328880555,1717949442439,-2591.06,0.00019996,2]
[328880556,1717949442450,-500.0,0.00019996,2]
[328880557,1717949442461,-61204.54265417,0.0002,2]
[328880558,1717949442473,-539.86203041,0.0002,2]
[328880559,1717949442483,-160.0,0.0002,2]
[328880560,1717949442493,-159.042426,0.0002,2]
[328880561,1717949442504,-159.042426,0.0002,2]
[328880562,1717949442515,-151.0,0.0002,2]
[328880563,1717949442526,-151.0,0.0002,2]
[328880564,1717949442538,-151.0,0.0002,2]
[328880565,1717949442549,-151.0,0.0002,2]
[328880566,1717949442560,-151.0,0.0002,2]
[328880567,1717949442574,-314.884317,0.0002,2]
[328880568,1717949442585,-314.884317,0.0002,2]
[328880569,1717949442596,-151.0,0.0002,2]
[328880570,1717949442608,-151.0,0.0002,2]
[328880571,1717949442622,-151.0,0.0002,2]
[328880572,1717949442633,-151.0,0.0002,2]
[328880573,1717949442644,-151.0,0.0002,2]
[328880574,1717949442657,-276.69738,0.0002,2]
[328880575,1717949442668,-276.69738,0.0002,2]
[328880576,1717949442679,-151.0,0.0002,2]
[328880577,1717949442689,-151.0,0.0002,2]
[328880578,1717949442700,-295.674163,0.0002,2]
[328880579,1717949442711,-295.674163,0.0002,2]
[328880580,1717949442722,-295.674163,0.0002,2]
[328880581,1717949442733,-295.67417,0.0002,2]
[328880582,1717949442745,-568.188488,0.0002,2]
[328880583,1717949442756,-568.188488,0.0002,2]
[328880584,1717949442766,-1248.430862,0.0002,2]
[328880585,1717949442778,-1248.430862,0.0002,2]
[328880586,1717949442788,-568.188488,0.0002,2]
[328880587,1717949442798,-568.188489,0.0002,2]
[328880588,1717949442809,-1248.430862,0.0002,2]
[328880589,1717949442820,-1248.430866,0.0002,2]
[328880590,1717949442830,-1305.712828,0.0002,2]
[328880591,1717949442840,-1305.712828,0.0002,2]
[328880592,1717949442851,-1305.712828,0.0002,2]
[328880593,1717949442861,-380.773605,0.0002,2]
[328880594,1717949442873,-1305.712831,0.0002,2]
[328880595,1717949442885,-380.773605,0.0002,2]
[328880596,1717949442896,-668.442388,0.0002,2]
[328880597,1717949442906,-668.442388,0.0002,2]
[328880598,1717949442917,-151.0,0.0002,2]
[328880599,1717949442928,-154.9690062,0.0002,2]
[328880600,1717949442939,-265.950479,0.0002,2]
[328880601,1717949442950,-21882.19346668,0.0002,2]
[328880602,1717949442961,-932.35426985,0.0002,2]
[328880603,1717949442972,-2794.30312552,0.0002,3]
[328880604,1717949442983,-4166.78,0.00020221,2]
[328880605,1717949442994,-151.0,0.00020221,2]
[328880606,1717949443004,-2591.06,0.0002027,2]
[328880607,1717949443015,-500.0,0.0002027,2]
[328880608,1717949443025,-151.0,0.00020369,2]
[328880609,1717949443035,-266.583162,0.00020369,2]
[328880610,1717949443046,-151.0,0.00020369,2]
[328880611,1717949443057,-314.884317,0.00020369,2]
[328880612,1717949443067,-314.884317,0.00020369,2]
[328880613,1717949443078,-152.424856,0.00020369,2]
[328880614,1717949443088,-151.0,0.00020369,2]
[328880615,1717949443099,-182.736628,0.00020369,2]
[328880616,1717949443109,-152.046613,0.00020369,2]
[328880617,1717949443119,-154.699872,0.00020369,2]
[328880618,1717949443129,-276.69738,0.00020369,2]
[328880619,1717949443138,-276.69738,0.00020369,2]
[328880620,1717949443149,-380.773605,0.00020369,2]
[328880621,1717949443160,-380.773605,0.00020369,2]
[328880622,1717949443170,-668.442388,0.00020369,2]
[328880623,1717949443181,-668.442388,0.00020369,2]
[328880624,1717949443192,-4166.78,0.00020495,2]
[328880625,1717949443202,-151.0,0.00020496,2]
[328880626,1717949443213,-249.826858,0.00020496,2]
[328880627,1717949443223,-2591.06,0.00020544,2]
[328880628,1717949443234,-500.0,0.00020544,2]
[328880629,1717949443245,-3623.92651476,0.0002066,7]
[328880630,1717949443255,-154.9690062,0.00020669,2]
[328880631,1717949443266,-314.884317,0.0002067,2]
[328880632,1717949443276,-314.884321,0.0002067,2]
[328880633,1717949443287,-151.0,0.0002067,2]
[328880634,1717949443297,-276.69738,0.0002067,2]
[328880635,1717949443307,-276.697385,0.0002067,2]
[328880636,1717949443318,-380.773605,0.0002067,2]
[328880637,1717949443328,-380.773609,0.0002067,2]
[328880638,1717949443337,-668.442388,0.0002067,2]
[328880639,1717949443347,-668.44238,0.0002067,2]
[328880640,1717949443358,-79179.33926643,0.0002067,3]
[328880641,1717949443370,-4166.78,0.00020769,2]
[328880642,1717949443380,-159.042426,0.00020795,2]
[328880643,1717949443390,-159.042426,0.00020795,2]
[328880644,1717949443400,-2591.06,0.00020818,2]
[328880645,1717949443410,-500.0,0.00020818,2]
[328880646,1717949443421,-151.0,0.00020917,2]
[328880647,1717949443431,-151.0,0.00020917,2]
[328880648,1717949443441,-393.98121283,0.00021,2]
[328880649,1717949443451,-904.18619073,0.00021,2]
[328880650,1717949443461,-4166.78,0.00021043,2]
[328880651,1717949443472,-2591.06,0.00021092,2]
[328880652,1717949443483,-500.0,0.00021092,2]
[328880653,1717949443494,-4166.78,0.00021317,2]
[328880654,1717949443504,-2591.06,0.00021366,2]
[328880655,1717949443515,-564.97,0.00021366,2]
[328880656,1717949443525,-500.0,0.00021408,2]
[328880657,1717949443536,-4166.78,0.00021591,2]
[328880658,1717949443551,-2591.06,0.0002164,2]
[328880659,1717949443561,-500.0,0.00021696,3]
[328880660,1717949443576,-151.0,0.00021739,2]
[328880661,1717949443586,-4166.78,0.00021865,2]
[328880662,1717949443596,-151.0,0.00021866,2]
[328880663,1717949443607,-159.042426,0.00021891,2]
[328880664,1717949443619,-159.042426,0.00021891,2]
[328880665,1717949443629,-2591.06,0.00021914,2]
[328880666,1717949443639,-166.666666,0.00021918,2]
[328880667,1717949443652,-154.98450155,0.00022,2]
[328880668,1717949443662,-42220.02883963,0.00022,2]
[328880669,1717949443683,-1003.10165721,0.00022,2]
[328880670,1717949443696,-7642.80805919,0.00022,2]
[328880671,1717949443705,-159.042426,0.00022,2]
[328880672,1717949443715,-159.042426,0.00022,2]
[328880673,1717949443725,-151.0,0.00022,2]
[328880674,1717949443735,-153.0,0.00022094,2]
[328880675,1717949443744,-153.0,0.00022094,2]
[328880676,1717949443754,-3909.71175514,0.00022139,2]
[328880742,1717949444559,-600.43188511,0.00016886,2]
[328880744,1717949444577,-43.86682886,0.00016886,2]
[328880746,1717949444587,-644.29871391,0.00018553,2]
[328880748,1717949444598,-257.06824486,0.00022139,2]
[328880750,1717949444608,-2591.06,0.00022188,2]
[328880752,1717949444620,-4166.78,0.00022413,2]
[328880754,1717949444630,-166.666666,0.00022431,2]
[328880756,1717949444640,-2591.06,0.00022462,2]
[328880758,1717949444651,-4166.78,0.00022687,2]
[328880760,1717949444662,-2591.06,0.00022736,2]
[328880762,1717949444672,-166.666666,0.00022944,2]
[328880764,1717949444682,-4166.78,0.00022961,2]
[328880766,1717949444692,-159.042426,0.00022987,2]
[328880768,1717949444703,-159.042426,0.00022987,2]
[328880770,1717949444714,-154.98450155,0.00023,2]
[328880772,1717949444726,-207.11489985,0.00023,2]
[328880774,1717949444736,-575.0,0.00023,2]
[328880776,1717949444747,-154.9690062,0.00023,2]
[328880778,1717949444758,-2591.06,0.0002301,2]
[328880781,1717949444770,-153.0,0.00023052,2]
[328880782,1717949444780,-153.0,0.00023052,2]
[328880783,1717949444790,-153.0,0.00023052,2]
[328880785,1717949444800,-4166.78,0.00023235,2]
[328880787,1717949444811,-2591.06,0.00023284,2]
[328880790,1717949444821,-166.666666,0.00023456,2]
[328880792,1717949444832,-2464.32897214,0.00023509,2]
[328881010,1717949538474,2642.54173153,9.999e-05,2]
[328881011,1717949558383,200.39532959,9.999e-05,2]
[328881012,1717949863159,659.92725719,9.999e-05,2]
[328881078,1717950632893,-154.9690062,0.00016012,2]
[328881080,1717950632904,-431.26840377,0.00016012,2]
[328881081,1717950632918,-2640.41111954,0.00016012,2]
[328881082,1717950632928,-19307.52255734,0.00016013,2]
[328881083,1717950632937,-24900.0,0.00016016,2]
[328881084,1717950632947,-160.04854241,0.00016886,2]
[328881085,1717950632957,-166.666666,0.00016986,2]
[328881086,1717950632967,-901.76743143,0.00016995,2]
[328881087,1717950632976,-7159.5192853,0.00017092,2]
[328881088,1717950632991,-355.28152847,0.00017092,2]
[328881243,1717950639242,-2315.4030709,0.00017092,2]
[328881267,1717950644482,-16266.29241874,0.00017092,2]
[328881270,1717950644522,-1725.07315766,0.00017092,2]
[328881271,1717950644605,-3829.27218749,0.00017092,2]
[328881272,1717950644617,-10251.89679314,0.00017092,2]
[328881273,1717950644629,-9239.12660524,0.00017092,2]
[328881274,1717950644675,-520.28485859,0.00017092,2]
[328881275,1717950644688,-1367.78620881,0.00017092,2]
[328881276,1717950644698,-500.0,0.00017093,2]
[328881277,1717950644707,-500.0,0.00017367,2]
[328881278,1717950644716,-500.0,0.00017641,2]
[328881279,1717950644726,-500.0,0.00017915,2]
[328881280,1717950644735,-1355.02163008,0.00018188,2]
[328881281,1717950644745,-500.0,0.00018189,2]
[328881282,1717950644755,-160.0485424,0.00018446,2]
[328881283,1717950644765,-500.0,0.00018463,2]
[328881284,1717950644776,-2004.84979057,0.000185,2]
[328881293,1717950647605,-2106.65424492,0.000185,2]
[328881294,1717950707560,154.9690062,9.999e-05,2]
[328881329,1717951165295,2642.54173153,9.999e-05,2]
[328881389,1717951833435,-24900.0,0.00015423,2]
[328881390,1717951833445,-154.9690062,0.00016134,2]
[328881391,1717951833455,-154.9690062,0.00016135,2]
[328881392,1717951833464,-240.9537092,0.00016138,2]
[328881393,1717951833477,-1234.1224539,0.00016353,2]
[328881394,1717951833487,-9588.50838645,0.000166,2]
[328881395,1717951833496,-968.92732714,0.00016601,2]
[328881396,1717951833507,-469.8742058,0.00016701,2]
[328881397,1717951833518,-166.666666,0.00016986,2]
[328881398,1717951833527,-500.0,0.00017092,2]
[328881399,1717951833536,-500.0,0.00017912,2]
[328881400,1717951833546,-1286.25,0.00017992,2]
[328881401,1717951833557,-25531.70419825,0.00017993,2]
[328881402,1717951833570,-5298.18473217,0.00017993,2]
[328881471,1717951838928,-154.9690062,0.00016133,2]
[328881473,1717951838938,-571.42993195,0.00017993,2]
[328881474,1717951838972,-1816.29599512,0.00017993,2]
[328881475,1717951838982,-183.70400488,0.00018086,2]
[328881494,1717951843767,-58.33559711,0.00018086,2]
[328881495,1717951843777,-500.0,0.00018186,2]
[328881496,1717951843787,-467.54490289,0.00018192,2]
[328881497,1717951843811,-3770.87340296,0.00018192,2]
[328881498,1717951843822,-1286.25,0.00018266,2]
[328881499,1717951843831,-389.44706773,0.00018306,2]
[328881500,1717951843956,-319.91534022,0.00018306,2]
[328881503,1717951844882,-259.56491914,0.00018306,2]
[328881504,1717951844893,-500.0,0.0001846,2]
[328881505,1717951844904,-16243.26310373,0.000185,2]
[328881506,1717951845124,-3131.03196006,0.000185,2]
[328881521,1717951868041,154.9690062,9.999e-05,2]
[328881522,1717951885691,156.96482514,9.999e-05,2]
[328881523,1717951887412,252.39025362,9.999e-05,2]
[328881524,1717951892971,154.9690062,9.999e-05,2]
[328881525,1717951894978,317.46618636,9.999e-05,2]
[328881526,1717951919874,8243.21151721,9.999e-05,2]
[328881527,1717952050221,154.9690062,9.999e-05,2]
[328881528,1717952131189,200.39532959,9.999e-05,2]
[328881580,1717953033039,-441.04596982,0.00014563,2]
[328881582,1717953033055,-1542.45260432,0.00014563,2]
[328881585,1717953033066,-1094.79783782,0.00014564,2]
[328881587,1717953033079,-1670.99319192,0.00014564,2]
[328881589,1717953033094,-1284.5294023,0.00014564,2]
[328881592,1717953033108,-975.75,0.00014564,2]
[328881594,1717953033123,-2892.25824372,0.00014564,2]
[328881596,1717953033135,-215.631394,0.00014568,2]
[328881599,1717953033146,-2588.18874586,0.00014661,2]
[328881601,1717953033160,-1576.40853823,0.00014661,2]
[328881603,1717953033173,-2761.42464324,0.00014661,2]
[328881605,1717953033187,-1453.99588173,0.00014661,2]
[328881609,1717953036155,362.34,0.00010959,2]
[328881621,1717953039295,-1205.249,0.00014661,2]
[328881680,1717953045253,-15314.73319094,0.00014661,2]
[328881682,1717953045266,-1694.3830749,0.00014899,2]
[328881684,1717953045279,-2482.5200576,0.00015201,2]
[328881686,1717953045291,-384.40717526,0.00015887,2]
[328881688,1717953045302,-19118.20322536,0.00015887,2]
[328881702,1717953045687,-2976.79173191,0.00015887,2]
[328881703,1717953045705,-320.17771403,0.00015887,2]
[328881704,1717953045868,-754.4922535,0.00015987,2]
[328881705,1717953045879,-500.0,0.00016438,2]
[328881706,1717953045891,-4417.4,0.00016438,2]
[328881707,1717953045906,-384.40717526,0.00016685,2]
[328881708,1717953045916,-4417.4,0.00016712,2]
[328881709,1717953045927,-2532.96026443,0.00016986,2]
[328881890,1717953078771,530.20911563,9.999e-05,2]
[328881891,1717953080416,182.0047069,9.999e-05,2]
[328881892,1717953088956,208.36805602,9.999e-05,2]
[328881893,1717953096697,159.04132765,9.999e-05,2]
[328881894,1717953104461,927.3752309,9.999e-05,2]
[328881895,1717953120004,1617.06792752,9.999e-05,2]
[328881896,1717953224103,659.92725719,9.999e-05,2]
[328881897,1717953248571,759.89577893,9.999e-05,2]
[328881898,1717953249889,154.9690062,9.999e-05,2]
[328881899,1717953252421,272.51996637,9.999e-05,2]
[328881900,1717953261450,154.9690062,9.999e-05,2]
[328881901,1717953266968,154.9690062,9.999e-05,2]
[328881902,1717953278658,154.9690062,9.999e-05,2]
[328881903,1717953282495,411.5321918,9.999e-05,2]
[328881904,1717953286923,5416.67569842,9.999e-05,2]
[328881905,1717953286956,463.78012924,9.999e-05,2]
[328881906,1717953287139,187.83191742,9.999e-05,2]
[328881907,1717953323569,154.9690062,9.999e-05,2]
[328881908,1717953358834,200.39532959,9.999e-05,2]
[328881910,1717953811061,29749.72990258,0.00016986,7]
[328881911,1717953931490,14874.86495129,0.00016984,7]
[328881912,1717953992634,1911.02618015,0.000141,2]
[328881913,1717954006501,10541.20747573,0.000141,2]
[328881914,1717954010610,319.46941751,0.000141,2]
[328881915,1717954023887,265.4218897,0.00013996,2]
[328881916,1717954052032,7437.43247564,0.00016986,7]
[328881917,1717954116855,24900.0,0.00013996,2]
[328881918,1717954173720,3680.44312622,0.0001698,7]
[328882205,1717954242199,-1983.49857414,0.00014899,2]
[328882206,1717954242211,-660.18072176,0.000149,2]
[328882207,1717954242222,-1025.71936217,0.000149,2]
[328882208,1717954242233,-338.85133581,0.00014992,2]
[328882209,1717954242243,-188.67358319,0.00014993,2]
[328882210,1717954242253,-5724.69181846,0.00014999,2]
[328882211,1717954242263,-155.42138466,0.00015,2]
[328882212,1717954242274,-18639.72743613,0.00015,2]
[328882213,1717954242286,-1093.02613938,0.00015,2]
[328882240,1717954243228,-461.20215999,0.00015,2]
[328882241,1717954243241,-13005.56384986,0.00015,2]
[328882242,1717954243254,-12704.17607364,0.00015,2]
[328882243,1717954243266,-2096.04884423,0.00015,2]
[328882282,1717954245128,-972.49400986,0.00015,2]
[328882283,1717954245171,-20172.11488633,0.00015,2]
[328882284,1717954245182,-293.26520376,0.00015,2]
[328882285,1717954245302,-10562.38139682,0.00015,2]
[328882286,1717954245314,-2410.47181677,0.00015,2]
[328882287,1717954245324,-945.74878612,0.00015,2]
[328882288,1717954245334,-1302.68548416,0.00015,2]
[328882289,1717954245346,-190.49958795,0.000156,2]
[328882290,1717954245356,-1025.71936214,0.00015602,2]
[328882291,1717954245366,-1025.71936214,0.00016304,2]
[328882292,1717954245376,-2391.213486,0.00016431,2]
[328882293,1717954245387,-238.28561063,0.00016433,2]
[328882294,1717954245397,-254.73298923,0.00016434,2]
[328882295,1717954245407,-156.53219785,0.00016434,2]
[328882296,1717954245418,-1690.17854487,0.00016434,2]
[328882297,1717954245428,-155.15985179,0.00016434,2]
[328882298,1717954245438,-411.83140751,0.00016434,2]
[328882299,1717954245448,-27124.61109735,0.00016436,2]
[328882302,1717954247384,-313.56105252,0.00016436,2]
[328882303,1717954247397,-1493.04173967,0.00016436,2]
[328882304,1717954247406,-385.06,0.00016438,2]
[328882305,1717954247416,-500.0,0.00016438,2]
[328882306,1717954247427,-633.91,0.00016438,2]
[328882307,1717954247437,-1179.06,0.00016438,2]
[328882308,1717954247446,-500.0,0.00016438,2]
[328882309,1717954247456,-455.68550243,0.00016438,2]
[328882310,1717954247468,-3488.05449757,0.00016438,2]
[328882311,1717954247478,-169.08864667,0.00016438,2]
[328882312,1717954247488,-500.0,0.00016438,2]
[328882313,1717954247498,-500.0,0.00016711,2]
[328882314,1717954247507,-1179.06,0.00016712,2]
[328882315,1717954247516,-866.85755102,0.00016712,2]
[328882316,1717954247528,-908.757849,0.00016712,2]
[328882318,1717954588951,292.26760426,0.00012327,2]
[328882400,1717955433213,-16864.99999999,0.00014567,2]
[328882414,1717955433358,-8035.00000001,0.00014567,2]
[328882416,1717955433368,-1100.59931817,0.00015,2]
[328882418,1717955433379,-945.74878612,0.00015,2]
[328882420,1717955433390,-1302.68548416,0.00015,2]
[328882422,1717955433400,-14304.49439437,0.00015,2]
[328882945,1717955443700,-37676.10912274,0.00015,2]
[328882988,1717955444314,-1844.88460773,0.00015,2]
[328882990,1717955444327,-26174.51187516,0.00015,2]
[328882991,1717955444336,-563.05155744,0.00015888,2]
[328882992,1717955444345,-577.65813154,0.00015988,2]
[328882993,1717955444355,-563.05155744,0.00016343,2]
[328882994,1717955444366,-1723.14727776,0.00016437,2]
[328882995,1717955444377,-500.0,0.00016438,2]
[328882996,1717955444387,-235.40173332,0.00016438,2]
[328882997,1717955444397,-500.0,0.00016438,2]
[328882998,1717955444407,-500.0,0.00016438,2]
[328882999,1717955444418,-500.0,0.00016438,2]
[328883000,1717955444429,-500.0,0.00016438,2]
[328883001,1717955444439,-500.0,0.00016438,2]
[328883002,1717955444449,-194.9494407,0.00016438,2]
[328883003,1717955444459,-500.0,0.00016438,2]
[328883004,1717955444469,-500.0,0.00016438,2]
[328883005,1717955444479,-500.0,0.00016438,2]
[328883006,1717955444490,-511.10757573,0.00016438,2]
[328883007,1717955444501,-500.0,0.00016438,2]
[328883008,1717955444512,-500.0,0.00016438,2]
[328883009,1717955444522,-500.0,0.00016438,2]
[328883010,1717955444532,-3705.43,0.00016438,2]
[328883011,1717955444543,-4238.41830585,0.00016492,2]
[328883012,1717955444554,-636.27,0.0001671,2]
[328883013,1717955444564,-500.0,0.0001671,2]
[328883014,1717955444575,-159.88389294,0.0001671,2]
[328883015,1717955444585,-500.0,0.0001671,2]
[328883016,1717955444596,-500.0,0.0001671,2]
[328883017,1717955444606,-500.0,0.0001671,2]
[328883018,1717955444616,-500.0,0.0001671,2]
[328883020,1717955444626,-405.21,0.0001671,2]
[328883022,1717955444636,-1254.42,0.0001671,2]
[328883024,1717955444646,-500.0,0.0001671,2]
[328883026,1717955444656,-508.7919652,0.0001671,2]
[328883028,1717955444667,-500.0,0.0001671,2]
[328883030,1717955444678,-500.0,0.0001671,2]
[328883032,1717955444688,-500.0,0.0001671,2]
[328883034,1717955444698,-73.41660113,0.0001671,2]
[328883113,1717955446806,-426.58339887,0.0001671,2]
[328883114,1717955446817,-193.75226581,0.0001671,2]
[328883115,1717955446830,-306.24773419,0.0001671,2]
[328883116,1717955446841,-500.0,0.0001671,2]
[328883118,1717955446852,-286.64405799,0.00016712,2]
[328883120,1717955446862,-500.0,0.00016712,2]
[328883122,1717955446872,-500.0,0.00016712,2]
[328883124,1717955446882,-231.73,0.00016712,2]
[328883126,1717955446892,-225.17,0.00016712,2]
[328883128,1717955446902,-500.0,0.00016712,2]
[328883130,1717955446912,-3705.43,0.00016712,2]
[328883132,1717955446922,-563.05155744,0.00016798,2]
[328883134,1717955446933,-14372.01288736,0.00016984,2]
[328883136,1717955446943,-500.0,0.00016984,2]
[328883138,1717955446953,-1254.42,0.00016984,2]
[328883140,1717955446963,-500.0,0.00016984,2]
[328883142,1717955446973,-421.81,0.00016984,2]
[328883144,1717955446983,-459.060547,0.00016984,2]
[328883146,1717955446992,-459.060547,0.00016984,2]
[328883148,1717955447002,-151.0,0.00016984,2]
[328883149,1717955447013,-500.0,0.00016986,2]
[328883152,1717955447024,-500.0,0.00016986,2]
[328883154,1717955447034,-310.79,0.00016986,2]
[328883156,1717955447044,-3705.43,0.00016986,2]
[328883158,1717955447055,-166.666666,0.00016986,2]
[328883160,1717955447065,-563.05155744,0.00017253,2]
[328883162,1717955447075,-380.57,0.00017258,2]
[328883164,1717955447085,-1254.42,0.00017258,2]
[328883166,1717955447095,-500.0,0.00017258,2]
[328883168,1717955447106,-500.0,0.0001726,2]
[328883170,1717955447116,-410.39,0.0001726,2]
[328883172,1717955447127,-3705.43,0.0001726,2]
[328883174,1717955447137,-153.625174,0.00017532,2]
[328883176,1717955447147,-202.310977,0.00017532,2]
[328883178,1717955447157,-202.310977,0.00017532,2]
[328883180,1717955447167,-975.414447,0.00017532,2]
[328883182,1717955447178,-975.414447,0.00017532,2]
[328883184,1717955447188,-151.0,0.00017532,2]
[328883186,1717955447198,-151.0,0.00017532,2]
[328883188,1717955447213,-151.0,0.00017532,2]
[328883190,1717955447223,-1254.42,0.00017532,2]
[328883192,1717955447234,-151.0,0.00017532,2]
[328883194,1717955447244,-609.237769,0.00017532,2]
[328883196,1717955447255,-609.237769,0.00017532,2]
[328883198,1717955447267,-151.0,0.00017532,2]
[328883200,1717955447277,-151.0,0.00017532,2]
[328883202,1717955447288,-151.0,0.00017532,2]
[328883204,1717955447300,-151.0,0.00017532,2]
[328883206,1717955447311,-151.0,0.00017532,2]
[328883208,1717955447322,-151.0,0.00017532,2]
[328883210,1717955447332,-1173.714281,0.00017532,2]
[328883212,1717955447342,-151.0,0.00017532,2]
[328883214,1717955447353,-1173.714281,0.00017532,2]
[328883216,1717955447363,-604.59,0.00017532,2]
[328883218,1717955447373,-459.060547,0.00017532,2]
[328883220,1717955447383,-459.060547,0.00017532,2]
[328883222,1717955447394,-151.0,0.00017532,2]
[328883224,1717955447405,-5898.81154835,0.00017534,7]
[328883226,1717955447416,-224.809009,0.00017534,2]
[328883228,1717955447427,-185.1602472,0.00017534,2]
[328883230,1717955447437,-3705.43,0.00017534,2]
[328883232,1717955447447,-1138.31144252,0.0001763,2]
[328883234,1717955447457,-563.05155744,0.00017708,2]
[328883236,1717955447468,-577.65813154,0.00017782,2]
[328883238,1717955447478,-151.0,0.00017798,2]
[328883240,1717955447488,-151.0,0.00017798,2]
[328883242,1717955447500,-1173.714281,0.00017798,2]
[328883244,1717955447511,-151.0,0.00017798,2]
[328883246,1717955447521,-1173.714281,0.00017798,2]
[328883248,1717955447531,-459.060547,0.00017798,2]
[328883250,1717955447541,-459.060547,0.00017798,2]
[328883252,1717955447551,-151.0,0.00017806,2]
[328883254,1717955447561,-151.0,0.00017806,2]
[328883256,1717955447574,-151.0,0.00017806,2]
[328883258,1717955447584,-1254.42,0.00017806,2]
[328883260,1717955447594,-151.0,0.00017806,2]
[328883262,1717955447604,-609.237769,0.00017806,2]
[328883264,1717955447614,-609.237769,0.00017806,2]
[328883266,1717955447625,-151.0,0.00017806,2]
[328883268,1717955447635,-151.0,0.00017806,2]
[328883270,1717955447646,-16159.70395328,0.00017808,7]
[328883272,1717955447656,-3000.0,0.00017808,2]
[328883274,1717955447666,-3000.0,0.00017808,2]
[328883276,1717955447677,-3000.0,0.00017808,2]
[328883279,1717955447688,-3000.0,0.00017808,2]
[328883290,1717955447797,-2350.27944799,0.00017808,2]
[328883293,1717955447811,-202.310977,0.00017808,2]
[328883295,1717955447821,-202.310977,0.00017808,2]
[328883297,1717955447832,-975.414447,0.00017808,2]
[328883299,1717955447842,-975.414447,0.00017808,2]
[328883300,1717955447852,-151.0,0.00017808,2]
[328883302,1717955447863,-151.0,0.00017808,2]
[328883304,1717955447872,-151.0,0.00017808,2]
[328883306,1717955447881,-151.0,0.00017808,2]
[328883308,1717955447892,-151.0,0.00017808,2]
[328883310,1717955447902,-460.87736434,0.00017808,2]
[328883320,1717955447993,-148.36040466,0.00017808,2]
[328883323,1717955448003,-609.237769,0.00017808,2]
[328883325,1717955448014,-609.237769,0.00017808,2]
[328883327,1717955448023,-42.75405734,0.00017808,2]
[328883329,1717955448036,-566.48371166,0.00017808,2]
[328883331,1717955448047,-151.0,0.00017808,2]
[328883333,1717955448057,-151.0,0.00017808,2]
[328883335,1717955448066,-3705.43,0.00017808,2]
[328883337,1717955448076,-151.0,0.00017808,2]
[328883339,1717955448086,-151.0,0.00017808,2]
[328883341,1717955448096,-151.0,0.00017808,2]
[328883343,1717955448106,-159.556204,0.00017808,2]
[328883345,1717955448116,-1173.714281,0.00017808,2]
[328883347,1717955448126,-1173.714281,0.00017808,2]
[328883349,1717955448136,-151.0,0.00017808,2]
[328883351,1717955448146,-1173.714281,0.00017808,2]
[328883353,1717955448156,-1173.714281,0.00017808,2]
[328883355,1717955448166,-459.060547,0.00017808,2]
[328883357,1717955448175,-459.060547,0.00017808,2]
[328883359,1717955448185,-459.060547,0.00017808,2]
[328883361,1717955448195,-459.060547,0.00017808,2]
[328883362,1717955448206,-151.0,0.00017897,2]
[328883365,1717955448217,-151.0,0.00017897,2]
[328883366,1717955448227,-151.0,0.00017897,2]
[328883368,1717955448237,-202.310977,0.00017898,2]
[328883370,1717955448247,-202.310977,0.00017898,2]
[328883373,1717955448257,-975.414447,0.00017898,2]
[328883375,1717955448267,-975.414447,0.00017898,2]
[328883376,1717955448277,-151.0,0.00017898,2]